fUST/lending_fUST_20250925
["ID","MTS","AMOUNT","RATE_DAILY","PERIOD"]
[387660961,1758801042528,-480.0,0.00020167,2]
[387660963,1758801042536,-480.0,0.00020167,2]
[387660964,1758801042546,-549.53592743,0.00020167,2]
[387660966,1758801042555,-471.90250823,0.00020167,2]
[387660968,1758801042565,-480.0,0.00020167,2]
[387660970,1758801042575,-388.39282493,0.00020167,2]
[387660972,1758801042585,-480.0,0.00020167,2]
[387660974,1758801042595,-480.0,0.00020167,2]
[387660976,1758801042605,-480.0,0.00020167,2]
[387660978,1758801042614,-480.0,0.00020167,2]
[387660980,1758801042624,-480.0,0.00020167,2]
[387660982,1758801042633,-480.0,0.00020167,2]
[387660984,1758801042642,-160.07,0.00020168,2]
[387660986,1758801042652,-480.0,0.00020168,2]
[387660988,1758801042661,-576.88880964,0.00020168,2]
[387660990,1758801042672,-480.0,0.00020168,2]
[387660992,1758801042683,-492.02703179,0.00020168,2]
[387660994,1758801042692,-491.22287459,0.00020168,2]
[387660996,1758801042701,-211.39488729,0.00020168,2]
[387660998,1758801042710,-492.38334792,0.00020168,2]
[387661000,1758801042720,-351.1931403,0.00020168,2]
[387661002,1758801042729,-480.0,0.00020168,2]
[387661004,1758801042739,-480.0,0.00020168,2]
[387661006,1758801042748,-480.0,0.00020168,2]
[387661008,1758801042758,-2434.99,0.00020168,2]
[387661010,1758801042767,-487.8373923,0.00020168,2]
[387661012,1758801042778,-480.0,0.00020168,2]
[387661014,1758801042788,-480.0,0.00020168,2]
[387661016,1758801042797,-480.0,0.00020168,2]
[387661018,1758801042807,-480.0,0.00020168,2]
[387661020,1758801042817,-483.58764596,0.00020168,2]
[387661022,1758801042826,-480.0,0.00020168,2]
[387661024,1758801042837,-491.20635136,0.00020168,2]
[387661026,1758801042846,-480.0,0.00020168,2]
[387661028,1758801042856,-622.4,0.00020168,2]
[387661030,1758801042867,-480.0,0.00020168,2]
[387661032,1758801042876,-487.05152714,0.00020168,2]
[387661034,1758801042886,-480.0,0.00020168,2]
[387661037,1758801042896,-480.0,0.00020168,2]
[387661040,1758801042906,-480.0,0.00020168,2]
[387661043,1758801042916,-480.0,0.00020168,2]
[387661046,1758801042926,-480.0,0.00020168,2]
[387661049,1758801042937,-480.0,0.00020168,2]
[387661053,1758801042947,-397.26195834,0.00020168,2]
[387661055,1758801042956,-480.0,0.00020168,2]
[387661057,1758801042970,-493.72609483,0.00020168,2]
[387661059,1758801042980,-480.0,0.00020168,2]
[387661061,1758801042990,-524.45347597,0.00020168,2]
[387661063,1758801042999,-1172.01,0.00020168,2]
[387661065,1758801043009,-480.0,0.00020168,2]
[387661067,1758801043018,-151.0,0.00020171,2]
[387661069,1758801043030,-500.0,0.00020171,2]
[387661072,1758801043041,-684.82,0.00020343,2]
[387661074,1758801043051,-480.0,0.00020441,2]
[387661077,1758801043060,-480.0,0.00020441,2]
[387661080,1758801043070,-480.0,0.00020441,2]
[387661082,1758801043080,-480.0,0.00020441,2]
[387661085,1758801043090,-480.0,0.00020441,2]
[387661087,1758801043099,-480.0,0.00020441,2]
[387661089,1758801043110,-480.0,0.00020441,2]
[387661091,1758801043120,-480.0,0.00020441,2]
[387661093,1758801043131,-480.0,0.00020442,2]
[387661095,1758801043141,-584.88,0.00020442,2]
[387661097,1758801043151,-2434.99,0.00020442,2]
[387661100,1758801043161,-480.0,0.00020442,2]
[387661102,1758801043171,-405.78890959,0.00020442,2]
[387661104,1758801043180,-489.65704816,0.00020442,2]
[387661106,1758801043189,-480.0,0.00020442,2]
[387661108,1758801043199,-480.0,0.00020442,2]
[387661110,1758801043209,-622.4,0.00020442,2]
[387661112,1758801043219,-472.12,0.00020442,2]
[387661114,1758801043228,-480.0,0.00020442,2]
[387661116,1758801043238,-480.0,0.00020442,2]
[387661118,1758801043248,-159.32556045,0.00020442,2]
[387661120,1758801043258,-480.0,0.00020442,2]
[387661122,1758801043268,-480.0,0.00020442,2]
[387661124,1758801043280,-1172.01,0.00020442,2]
[387661126,1758801043290,-480.0,0.00020442,2]
[387661128,1758801043300,-151.0,0.00020445,2]
[387661130,1758801043310,-434.54488845,0.00020496,2]
[387661131,1758801043319,-500.0,0.00020521,2]
[387661133,1758801043328,-1000.0,0.00020521,2]
[387661134,1758801043338,-500.0,0.00020521,2]
[387661137,1758801043350,-500.0,0.00020521,2]
[387661139,1758801043368,-160.0,0.00020627,3]
[387661142,1758801043382,-28567.35474008,0.00020627,3]
[387661144,1758801043392,-370.59973759,0.00020675,2]
[387661146,1758801043403,-480.0,0.00020715,2]
[387661148,1758801043414,-480.0,0.00020715,2]
[387661150,1758801043424,-480.0,0.00020715,2]
[387661152,1758801043434,-480.0,0.00020715,2]
[387661154,1758801043445,-480.0,0.00020715,2]
[387661156,1758801043455,-480.0,0.00020715,2]
[387661158,1758801043464,-480.0,0.00020715,2]
[387661160,1758801043474,-480.0,0.00020715,2]
[387661162,1758801043484,-480.0,0.00020716,2]
[387661164,1758801043494,-2434.99,0.00020716,2]
[387661166,1758801043504,-442.89,0.00020716,2]
[387661168,1758801043514,-480.0,0.00020716,2]
[387661170,1758801043524,-622.4,0.00020716,2]
[387661172,1758801043536,-482.53058973,0.00020716,2]
[387661174,1758801043547,-480.0,0.00020716,2]
[387661176,1758801043556,-480.0,0.00020716,2]
[387661178,1758801043567,-480.0,0.00020716,2]
[387661180,1758801043576,-1172.01,0.00020716,2]
[387661182,1758801043586,-480.0,0.00020716,2]
[387661184,1758801043596,-200.37485388,0.00020719,2]
[387661186,1758801043606,-150.0,0.0002075,2]
[387661188,1758801043617,-5000.0,0.00020846,2]
[387661190,1758801043627,-620.06690232,0.00020937,2]
[387661192,1758801043637,-496.53679296,0.00020972,2]
[387661194,1758801043647,-269.338928,0.00020989,2]
[387661196,1758801043657,-480.0,0.00020989,2]
[387661198,1758801043668,-480.0,0.00020989,2]
[387661200,1758801043678,-480.0,0.00020989,2]
[387661202,1758801043688,-480.0,0.00020989,2]
[387661204,1758801043698,-480.0,0.00020989,2]
[387661206,1758801043707,-480.0,0.00020989,2]
[387661208,1758801043718,-480.0,0.00020989,2]
[387661210,1758801043727,-480.0,0.0002099,2]
[387661212,1758801043736,-2434.99,0.0002099,2]
[387661214,1758801043746,-622.4,0.0002099,2]
[387661216,1758801043755,-480.0,0.0002099,2]
[387661218,1758801043765,-480.0,0.0002099,2]
[387661220,1758801043775,-480.0,0.0002099,2]
[387661222,1758801043786,-1172.01,0.0002099,2]
[387661224,1758801043795,-480.0,0.0002099,2]
[387661226,1758801043805,-1500.0,0.00021068,2]
[387661228,1758801043815,-480.0,0.00021263,2]
[387661230,1758801043824,-480.0,0.00021263,2]
[387661232,1758801043834,-512.84653013,0.00021263,2]
[387661234,1758801043843,-480.0,0.00021263,2]
[387661236,1758801043852,-480.0,0.00021263,2]
[387661238,1758801043863,-480.0,0.00021263,2]
[387661240,1758801043873,-480.0,0.00021263,2]
[387661241,1758801043882,-480.0,0.00021264,2]
[387661242,1758801043892,-2434.99,0.00021264,2]
[387661243,1758801043902,-622.4,0.00021264,2]
[387661244,1758801043912,-480.0,0.00021264,2]
[387661245,1758801043922,-536.05986841,0.00021264,2]
[387661246,1758801043931,-590.21586468,0.00021264,2]
[387661247,1758801043940,-1172.01,0.00021264,2]
[387661248,1758801043950,-480.0,0.00021264,2]
[387661249,1758801043959,-504.83976007,0.00021343,2]
[387661250,1758801043971,-500.0,0.00021343,2]
[387661251,1758801043980,-238.57457338,0.00021343,2]
[387661252,1758801043989,-500.0,0.00021343,2]
[387661253,1758801043999,-473.02439227,0.00021496,2]
[387661254,1758801044011,-480.0,0.00021537,2]
[387661255,1758801044020,-480.0,0.00021537,2]
[387661256,1758801044030,-480.0,0.00021537,2]
[387661257,1758801044039,-480.0,0.00021537,2]
[387661258,1758801044052,-480.0,0.00021537,2]
[387661259,1758801044062,-480.0,0.00021537,2]
[387661260,1758801044071,-480.0,0.00021538,2]
[387661261,1758801044081,-2434.99,0.00021538,2]
[387661262,1758801044090,-622.4,0.00021538,2]
[387661263,1758801044099,-480.0,0.00021538,2]
[387661264,1758801044109,-1172.01,0.00021538,2]
[387661265,1758801044118,-480.0,0.00021538,2]
[387661266,1758801044129,-329.57040881,0.00021557,2]
[387661267,1758801044139,-2000.0,0.00021616,2]
[387661268,1758801044148,-500.0,0.00021737,2]
[387661269,1758801044158,-500.0,0.00021737,2]
[387661270,1758801044167,-500.0,0.00021737,2]
[387661271,1758801044176,-500.0,0.00021737,2]
[387661272,1758801044185,-460.90661814,0.00021737,2]
[387661273,1758801044284,-480.0,0.00021811,2]
[387661274,1758801044294,-480.0,0.00021811,2]
[387661275,1758801044303,-480.0,0.00021811,2]
[387661277,1758801044312,-480.0,0.00021811,2]
[387661279,1758801044322,-480.0,0.00021811,2]
[387661281,1758801044331,-480.0,0.00021811,2]
[387661283,1758801044341,-480.0,0.00021812,2]
[387661285,1758801044350,-2434.99,0.00021812,2]
[387661287,1758801044359,-622.4,0.00021812,2]
[387661289,1758801044369,-1172.01,0.00021812,2]
[387661291,1758801044380,-398.47427497,0.00021812,2]
[387661293,1758801044389,-2480.26760928,0.00021867,2]
[387661295,1758801044398,-1000.0,0.00021891,2]
[387661297,1758801044408,-1000.0,0.00021891,2]
[387661299,1758801044418,-151.0,0.00021918,2]
[387661301,1758801044427,-496.53679296,0.00022044,2]
[387661303,1758801044437,-370.59973759,0.0002205,2]
[387661305,1758801044447,-480.0,0.00022085,2]
[387661307,1758801044457,-480.0,0.00022085,2]
[387661309,1758801044467,-480.0,0.00022085,2]
[387661311,1758801044476,-525.80642273,0.00022085,2]
[387661313,1758801044486,-480.0,0.00022085,2]
[387661315,1758801044497,-480.0,0.00022085,2]
[387661318,1758801044507,-168.94496605,0.00022086,2]
[387661320,1758801044516,-2434.99,0.00022086,2]
[387661321,1758801044525,-622.4,0.00022086,2]
[387661323,1758801044537,-1172.01,0.00022086,2]
[387661325,1758801044546,-697.26,0.000221,2]
[387661327,1758801044555,-233.66602051,0.00022132,2]
[387661329,1758801044565,-160.0,0.00022132,2]
[387661331,1758801044574,-2500.0,0.00022164,2]
[387661333,1758801044584,-161.0,0.00022192,6]
[387661335,1758801044593,-199.43614688,0.00022192,2]
[387661337,1758801044603,-480.0,0.00022359,2]
[387661339,1758801044612,-480.0,0.00022359,2]
[387661341,1758801044622,-480.0,0.00022359,2]
[387661343,1758801044630,-480.0,0.00022359,2]
[387661345,1758801044640,-480.0,0.00022359,2]
[387661347,1758801044649,-2434.99,0.0002236,2]
[387661349,1758801044659,-622.4,0.0002236,2]
[387661351,1758801044668,-1172.01,0.0002236,2]
[387661353,1758801044677,-1500.0,0.00022439,2]
[387661355,1758801044686,-1000.0,0.00022439,2]
[387661357,1758801044695,-2029.7,0.00022544,2]
[387661359,1758801044705,-480.0,0.00022633,2]
[387661361,1758801044715,-480.0,0.00022633,2]
[387661363,1758801044724,-480.0,0.00022633,2]
[387661365,1758801044733,-480.0,0.00022633,2]
[387661367,1758801044743,-480.0,0.00022633,2]
[387661369,1758801044752,-2434.99,0.00022634,2]
[387661371,1758801044762,-622.4,0.00022634,2]
[387661373,1758801044771,-1172.01,0.00022634,2]
[387661375,1758801044782,-150.0,0.00022636,2]
[387661377,1758801044792,-1002.39362994,0.00022712,2]
[387661380,1758801044802,-5575.02151876,0.00022797,2]
[387661382,1758801044812,-480.0,0.00022907,2]
[387661384,1758801044821,-480.0,0.00022907,2]
[387661386,1758801044831,-480.0,0.00022907,2]
[387661388,1758801044841,-480.0,0.00022907,2]
[387661390,1758801044853,-480.0,0.00022907,2]
[387661392,1758801044862,-2434.99,0.00022908,2]
[387661394,1758801044871,-622.4,0.00022908,2]
[387661396,1758801044882,-1172.01,0.00022908,2]
[387661398,1758801044891,-2000.0,0.00022987,2]
[387661400,1758801044901,-496.53679296,0.00023116,2]
[387661402,1758801044911,-369.25478094,0.00023181,2]
[387661404,1758801044921,-480.0,0.00023181,2]
[387661406,1758801044930,-480.0,0.00023181,2]
[387661408,1758801044940,-301.21846447,0.00023181,2]
[387661410,1758801044949,-480.0,0.00023181,2]
[387661412,1758801044959,-2434.99,0.00023182,2]
[387661414,1758801044973,-622.4,0.00023182,2]
[387661416,1758801044983,-1172.01,0.00023182,2]
[387661418,1758801044992,-715.51,0.00023287,2]
[387661420,1758801045002,-500.0,0.00023382,2]
[387661422,1758801045012,-370.59973759,0.00023425,2]
[387661424,1758801045022,-1890.20547152,0.00023454,2]
[387661426,1758801045033,-526.79890223,0.00023455,2]
[387661428,1758801045045,-480.0,0.00023455,2]
[387661430,1758801045054,-480.0,0.00023455,2]
[387661432,1758801045063,-2434.99,0.00023456,2]
[387661434,1758801045073,-622.4,0.00023456,2]
[387661436,1758801045082,-1172.01,0.00023456,2]
[387661438,1758801045092,-2517.18989171,0.00023535,2]
[387661440,1758801045102,-1316.9633536,0.00023581,2]
[387661442,1758801045111,-480.0,0.00023729,2]
[387661444,1758801045121,-480.0,0.00023729,2]
[387661446,1758801045131,-2434.99,0.0002373,2]
[387661448,1758801045140,-622.4,0.0002373,2]
[387661450,1758801045150,-1172.01,0.0002373,2]
[387661452,1758801045159,-480.0,0.00024003,2]
[387661454,1758801045168,-480.0,0.00024003,2]
[387661456,1758801045178,-2434.99,0.00024004,2]
[387661458,1758801045187,-622.4,0.00024004,2]
[387661460,1758801045197,-1172.01,0.00024004,2]
[387661462,1758801045206,-1096.136,0.00024076,5]
[387661464,1758801045215,-5000.0,0.00024096,2]
[387661466,1758801045226,-496.53679296,0.00024187,2]
[387661468,1758801045235,-480.0,0.00024277,2]
[387661470,1758801045244,-480.0,0.00024277,2]
[387661471,1758801045253,-2434.99,0.00024278,2]
[387661474,1758801045263,-622.4,0.00024278,2]
[387661475,1758801045272,-1172.01,0.00024278,2]
[387661478,1758801045283,-150.0,0.00024522,2]
[387661480,1758801045293,-480.0,0.00024551,2]
[387661481,1758801045302,-480.0,0.00024551,2]
[387661483,1758801045311,-2434.99,0.00024552,2]
[387661485,1758801045321,-622.4,0.00024552,2]
[387661487,1758801045331,-1172.01,0.00024552,2]
[387661489,1758801045340,-200.0,0.00024658,15]
[387661491,1758801045350,-198.0,0.00024658,2]
[387661493,1758801045359,-370.59973759,0.000248,2]
[387661495,1758801045369,-480.0,0.00024825,2]
[387661497,1758801045378,-480.0,0.00024825,2]
[387661499,1758801045387,-2434.99,0.00024826,2]
[387661501,1758801045397,-622.4,0.00024826,2]
[387661502,1758801045407,-1172.01,0.00024826,2]
[387661504,1758801045417,-586.2552204,0.00024849,2]
[387661506,1758801045427,-586.2552204,0.00024849,2]
[387661508,1758801045437,-586.2552204,0.00024849,2]
[387661510,1758801045446,-586.2552204,0.00024849,2]
[387661512,1758801045456,-586.2552204,0.00024849,2]
[387661514,1758801045466,-500.0,0.00024873,2]
[387661516,1758801045476,-500.0,0.00024873,2]
[387661518,1758801045488,-500.0,0.00024873,2]
[387661520,1758801045497,-150.0,0.00024873,2]
[387661522,1758801045506,-1172.2413822,0.00024878,2]
[387661524,1758801045515,-328.91413738,0.0002489,2]
[387661526,1758801045525,-151.0,0.000249,7]
[387661528,1758801045535,-151.0,0.000249,7]
[387661530,1758801045544,-151.0,0.000249,7]
[387661532,1758801045553,-151.0,0.000249,7]
[387661534,1758801045562,-151.0,0.000249,7]
[387661536,1758801045571,-151.0,0.000249,7]
[387661538,1758801045581,-151.0,0.000249,7]
[387661539,1758801045589,-151.0,0.000249,7]
[387661541,1758801045599,-151.0,0.000249,7]
[387661543,1758801045609,-151.0,0.000249,7]
[387661545,1758801045617,-155.210128,0.000249,7]
[387661547,1758801045627,-151.0,0.000249,7]
[387661549,1758801045636,-151.0,0.000249,7]
[387661551,1758801045646,-151.0,0.000249,7]
[387661553,1758801045654,-151.0,0.000249,7]
[387661555,1758801045664,-151.0,0.000249,7]
[387661557,1758801045673,-151.0,0.000249,7]
[387661559,1758801045682,-443.046888,0.000249,7]
[387661561,1758801045691,-443.046888,0.000249,7]
[387661563,1758801045701,-151.0,0.000249,7]
[387661565,1758801045711,-443.046888,0.000249,7]
[387661567,1758801045720,-443.046888,0.000249,7]
[387661568,1758801045729,-151.0,0.000249,7]
[387661570,1758801045739,-151.0,0.000249,7]
[387661573,1758801045750,-151.0,0.000249,7]
[387661574,1758801045760,-151.0,0.000249,7]
[387661577,1758801045770,-151.0,0.000249,7]
[387661579,1758801045780,-151.0,0.000249,7]
[387661587,1758801045793,-151.0,0.000249,7]
[387661589,1758801045869,-151.0,0.000249,7]
[387661591,1758801045879,-151.0,0.000249,7]
[387661593,1758801045888,-151.0,0.000249,7]
[387661595,1758801045898,-151.0,0.000249,7]
[387661597,1758801045907,-151.0,0.000249,7]
[387661600,1758801045917,-151.0,0.000249,7]
[387661602,1758801045926,-151.0,0.000249,7]
[387661604,1758801045936,-160.146207,0.000249,7]
[387661606,1758801045946,-160.146207,0.000249,7]
[387661608,1758801045955,-160.146207,0.000249,7]
[387661610,1758801045967,-160.146207,0.000249,7]
[387661612,1758801045978,-151.0,0.000249,7]
[387661614,1758801045987,-151.0,0.000249,7]
[387661616,1758801045997,-151.0,0.000249,7]
[387661618,1758801046008,-151.0,0.000249,7]
[387661620,1758801046017,-151.0,0.000249,7]
[387661622,1758801046026,-151.0,0.000249,7]
[387661623,1758801046038,-151.0,0.000249,7]
[387661625,1758801046048,-151.0,0.000249,7]
[387661627,1758801046059,-151.0,0.000249,7]
[387661629,1758801046069,-151.0,0.000249,7]
[387661631,1758801046078,-151.0,0.000249,7]
[387661633,1758801046087,-216.968045,0.000249,7]
[387661635,1758801046096,-43814.77199451,0.000249,2]
[387661637,1758801046106,-201.959939,0.000249,7]
[387661639,1758801046115,-201.959939,0.000249,7]
[387661641,1758801046125,-201.959939,0.000249,7]
[387661643,1758801046134,-201.959939,0.000249,7]
[387661645,1758801046144,-151.0,0.000249,7]
[387661647,1758801046153,-151.0,0.000249,7]
[387661649,1758801046163,-259.662912,0.000249,7]
[387661651,1758801046172,-259.662912,0.000249,7]
[387661653,1758801046182,-259.662912,0.000249,7]
[387661655,1758801046192,-259.662912,0.000249,7]
[387661657,1758801046202,-151.0,0.000249,7]
[387661659,1758801046211,-151.0,0.000249,7]
[387661661,1758801046220,-151.0,0.000249,7]
[387661663,1758801046229,-151.0,0.000249,7]
[387661665,1758801046239,-151.0,0.000249,7]
[387661667,1758801046248,-151.0,0.000249,7]
[387661669,1758801046258,-151.0,0.000249,7]
[387661671,1758801046268,-151.0,0.000249,7]
[387661673,1758801046278,-151.0,0.000249,7]
[387661675,1758801046288,-151.0,0.000249,7]
[387661677,1758801046298,-151.0,0.000249,7]
[387661679,1758801046308,-151.0,0.000249,7]
[387661681,1758801046317,-793.102103,0.000249,7]
[387661683,1758801046327,-793.102103,0.000249,7]
[387661685,1758801046336,-793.102103,0.000249,7]
[387661687,1758801046346,-793.102103,0.000249,7]
[387661689,1758801046355,-151.0,0.000249,7]
[387661691,1758801046364,-151.0,0.000249,7]
[387661693,1758801046375,-151.0,0.000249,7]
[387661694,1758801046384,-151.0,0.000249,7]
[387661696,1758801046393,-151.0,0.000249,7]
[387661698,1758801046403,-151.0,0.000249,7]
[387661700,1758801046412,-151.0,0.000249,7]
[387661702,1758801046421,-151.0,0.000249,7]
[387661704,1758801046431,-151.0,0.000249,7]
[387661706,1758801046441,-151.0,0.000249,7]
[387661708,1758801046450,-151.0,0.000249,7]
[387661710,1758801046460,-306547.13422032,0.000249,2]
[387661715,1758801046503,-4698.04128397,0.000249,2]
[387661717,1758801046515,-9022.74773074,0.000249,2]
[387661948,1758801048908,-0.02391791,0.000249,2]
[387661957,1758801048984,-66640.05144906,0.000249,2]
[387661959,1758801048994,-151.0,0.000249,7]
[387661961,1758801049003,-164.406436,0.000249,7]
[387661963,1758801049013,-151.0,0.000249,7]
[387661965,1758801049023,-151.0,0.000249,7]
[387661967,1758801049032,-151.0,0.000249,7]
[387661969,1758801049044,-151.0,0.000249,7]
[387661971,1758801049053,-219.262105,0.000249,7]
[387661973,1758801049062,-151.0,0.000249,7]
[387661975,1758801049072,-153.14851591,0.000249,2]
[387661977,1758801049081,-151.0,0.000249,7]
[387661979,1758801049091,-151.0,0.000249,7]
[387661981,1758801049101,-151.0,0.000249,7]
[387661983,1758801049111,-153.552444,0.000249,7]
[387661985,1758801049121,-247.333577,0.000249,7]
[387661987,1758801049132,-247.333577,0.000249,7]
[387661989,1758801049143,-151.0,0.000249,7]
[387661991,1758801049153,-247.333577,0.000249,7]
[387661993,1758801049163,-247.333577,0.000249,7]
[387661995,1758801049173,-151.0,0.000249,7]
[387661997,1758801049182,-151.0,0.000249,7]
[387661999,1758801049192,-1256.687899,0.000249,7]
[387662001,1758801049202,-1256.687899,0.000249,7]
[387662003,1758801049212,-1256.687899,0.000249,7]
[387662005,1758801049222,-151.0,0.000249,7]
[387662007,1758801049232,-1256.687899,0.000249,7]
[387662009,1758801049242,-151.0,0.000249,7]
[387662011,1758801049252,-151.0,0.000249,7]
[387662013,1758801049262,-151.0,0.000249,7]
[387662015,1758801049272,-151.0,0.000249,7]
[387662017,1758801049282,-151.0,0.000249,7]
[387662019,1758801049293,-151.0,0.000249,7]
[387662021,1758801049303,-1241.60734,0.000249,7]
[387662024,1758801049313,-151.0,0.000249,7]
[387662026,1758801049322,-151.0,0.000249,7]
[387662028,1758801049332,-1241.60734,0.000249,7]
[387662029,1758801049342,-182.994205,0.000249,7]
[387662031,1758801049351,-151.0,0.000249,7]
[387662033,1758801049361,-1241.60734,0.000249,7]
[387662035,1758801049371,-151.0,0.000249,7]
[387662038,1758801049381,-1241.60734,0.000249,7]
[387662040,1758801049391,-917.325234,0.000249,7]
[387662042,1758801049401,-138.40103894,0.000249,7]
[387662086,1758801049815,-480.0,0.00019344,2]
[387662088,1758801049824,-480.0,0.00019345,2]
[387662090,1758801049833,-481.43059683,0.00019345,2]
[387662092,1758801049842,-410.88683039,0.00019345,2]
[387662094,1758801049851,-483.19041764,0.00019346,2]
[387662096,1758801049861,-500.0,0.00019347,2]
[387662098,1758801049871,-778.92419506,0.000249,7]
[387662100,1758801049882,-917.325234,0.000249,7]
[387662102,1758801049892,-917.325234,0.000249,7]
[387662104,1758801049901,-917.325234,0.000249,7]
[387662113,1758801049979,-917.325234,0.000249,7]
[387662115,1758801049990,-151.0,0.000249,7]
[387662117,1758801050000,-917.325234,0.000249,7]
[387662119,1758801050010,-151.0,0.000249,7]
[387662121,1758801050021,-151.0,0.000249,7]
[387662123,1758801050031,-151.0,0.000249,7]
[387662125,1758801050041,-917.325234,0.000249,7]
[387662127,1758801050052,-151.0,0.000249,7]
[387662129,1758801050062,-151.0,0.000249,7]
[387662131,1758801050072,-160.126822,0.000249,7]
[387662133,1758801050081,-160.126822,0.000249,7]
[387662135,1758801050090,-151.0,0.000249,7]
[387662137,1758801050099,-151.0,0.000249,7]
[387662139,1758801050109,-151.0,0.000249,7]
[387662141,1758801050118,-177.320552,0.000249,7]
[387662143,1758801050127,-160.126822,0.000249,7]
[387662145,1758801050137,-160.126822,0.000249,7]
[387662147,1758801050146,-191.037958,0.000249,7]
[387662149,1758801050156,-160.126822,0.000249,7]
[387662151,1758801050165,-160.126822,0.000249,7]
[387662153,1758801050175,-160.126822,0.000249,7]
[387662155,1758801050185,-160.126822,0.000249,7]
[387662156,1758801050194,-151.0,0.000249,7]
[387662158,1758801050204,-205.234927,0.000249,7]
[387662160,1758801050213,-151.0,0.000249,7]
[387662162,1758801050222,-205.234927,0.000249,7]
[387662164,1758801050231,-151.0,0.000249,7]
[387662166,1758801050241,-151.0,0.000249,7]
[387662168,1758801050250,-205.234927,0.000249,7]
[387662170,1758801050260,-205.234927,0.000249,7]
[387662172,1758801050270,-151.0,0.000249,7]
[387662174,1758801050280,-151.0,0.000249,7]
[387662176,1758801050291,-205.234927,0.000249,7]
[387662178,1758801050300,-205.234927,0.000249,7]
[387662180,1758801050309,-151.0,0.000249,7]
[387662182,1758801050319,-205.234927,0.000249,7]
[387662184,1758801050328,-235.323079,0.000249,7]
[387662186,1758801050338,-205.234927,0.000249,7]
[387662188,1758801050348,-151.0,0.000249,7]
[387662190,1758801050358,-297.961005,0.000249,7]
[387662192,1758801050367,-190.070172,0.000249,7]
[387662194,1758801050376,-297.961005,0.000249,7]
[387662196,1758801050386,-297.961005,0.000249,7]
[387662198,1758801050396,-297.961005,0.000249,7]
[387662200,1758801050405,-297.961005,0.000249,7]
[387662202,1758801050414,-297.961005,0.000249,7]
[387662204,1758801050425,-320.057868,0.000249,7]
[387662206,1758801050434,-320.057868,0.000249,7]
[387662208,1758801050444,-297.961005,0.000249,7]
[387662210,1758801050453,-297.961005,0.000249,7]
[387662212,1758801050463,-320.057868,0.000249,7]
[387662214,1758801050473,-320.057868,0.000249,7]
[387662216,1758801050483,-320.057868,0.000249,7]
[387662218,1758801050492,-58.38942024,0.000249,7]
[387662220,1758801050504,-261.66844776,0.000249,7]
[387662222,1758801050514,-320.057868,0.000249,7]
[387662225,1758801050525,-320.057868,0.000249,7]
[387662228,1758801050545,-151.0,0.000249,7]